bitfinex-derivatives/quotes_BTCF0:USTF0_20250828
["timestamp","ask_amount","ask_price","bid_price","bid_amount"]
[1756400177278,0.89842,112680.0,112670.0,0.1281926]
[1756400177576,0.92593984,112680.0,112670.0,0.68672216]
[1756400178878,0.03045984,112680.0,112670.0,0.68672216]
[1756400179180,0.92593984,112680.0,112670.0,0.68672216]
[1756400179378,0.03045984,112680.0,112670.0,0.68672216]
[1756400179675,0.92461984,112680.0,112670.0,0.68672216]
[1756400180672,0.92461984,112680.0,112670.0,0.68772216]
[1756400181371,0.92461984,112680.0,112670.0,0.1047926]
[1756400181576,0.92461984,112680.0,112670.0,0.68772216]
[1756400181577,0.03045984,112680.0,112670.0,0.68772216]
[1756400181779,0.92357984,112680.0,112670.0,0.1047926]
[1756400181976,0.92357984,112680.0,112670.0,0.68772216]
[1756400182579,0.92357984,112680.0,112670.0,0.68672216]
[1756400182880,0.92457984,112680.0,112670.0,0.1281926]
[1756400183282,0.92457984,112680.0,112670.0,0.1037926]
[1756400183484,1.01331454,112680.0,112670.0,0.1037926]
[1756400183680,1.26331454,112680.0,112670.0,0.0887426]
[1756400183878,0.00294,112660.0,112650.0,0.10814344]
[1756400184185,0.9071,112660.0,112650.0,0.1282049]
[1756400184381,0.93461448,112660.0,112650.0,0.1282049]
[1756400184583,0.93461448,112660.0,112650.0,0.68673446]
[1756400184783,0.03045448,112660.0,112650.0,0.68673446]
[1756400184981,0.89641448,112660.0,112650.0,0.68673446]
[1756400185783,0.89641448,112660.0,112650.0,0.68973446]
[1756400186392,0.89641448,112660.0,112650.0,0.68773446]
[1756400186594,0.89641448,112660.0,112650.0,0.68673446]
[1756400187090,0.89741448,112660.0,112650.0,0.68673446]
[1756400187596,0.89741448,112660.0,112650.0,0.60499091]
[1756400188195,0.89741448,112660.0,112650.0,0.1282049]
[1756400188596,0.89741448,112660.0,112650.0,0.60499091]
[1756400190299,0.8699,112660.0,112650.0,0.60499091]
[1756400190900,0.8699,112660.0,112650.0,0.1282049]
[1756400191201,0.8699,112660.0,112650.0,0.60499091]
[1756400191399,0.00394,112660.0,112650.0,0.1282049]
[1756400191697,0.90854,112660.0,112650.0,0.60499091]
[1756400191998,0.90802,112660.0,112650.0,0.60499091]
[1756400192402,0.90802,112660.0,112650.0,0.1282049]
[1756400192595,0.90802,112660.0,112650.0,0.60499091]
[1756400193299,0.90802,112660.0,112650.0,0.1282049]
[1756400193702,0.90802,112660.0,112650.0,0.60499091]
[1756400194806,0.00394,112660.0,112650.0,0.60499091]
[1756400195006,0.90758,112660.0,112650.0,0.60499091]
[1756400195206,0.90758,112660.0,112650.0,0.1282049]
[1756400195507,0.90758,112660.0,112650.0,0.60499091]
[1756400195904,0.90758,112660.0,112650.0,0.1282049]
[1756400196105,0.90758,112660.0,112650.0,0.60499091]
[1756400196806,0.00394,112660.0,112650.0,0.60499091]
[1756400197106,0.90614,112660.0,112650.0,0.1282049]
[1756400197308,0.90614,112660.0,112650.0,0.60499091]
[1756400197697,0.90538,112660.0,112650.0,0.60499091]
[1756400198804,0.00394,112660.0,112650.0,0.60499091]
[1756400199006,0.90498,112660.0,112650.0,0.60499091]
[1756400201806,0.0916984,112650.0,112640.0,0.12464327]
[1756400202113,0.56848441,112650.0,112640.0,0.01988307]
[1756400202305,0.59576065,112650.0,112640.0,0.03588307]
[1756400202512,0.59576065,112650.0,112640.0,0.01988307]
[1756400202815,0.60449008,112650.0,112640.0,0.01988307]
[1756400203214,0.60449008,112650.0,112640.0,0.10864937]
[1756400203415,0.85449008,112650.0,112640.0,0.10864937]
[1756400203812,0.37770407,112650.0,112640.0,0.12564937]
[1756400204012,1.22798407,112650.0,112640.0,0.12564937]
[1756400204210,1.70477008,112650.0,112640.0,0.10964937]
[1756400204418,1.67749384,112650.0,112640.0,0.10964937]
[1756400204717,1.67849384,112650.0,112640.0,0.12464937]
[1756400204911,1.27695923,112650.0,112640.0,0.12464937]
[1756400205816,1.27895923,112650.0,112640.0,0.12464937]
[1756400206017,1.75574524,112650.0,112640.0,0.12464937]
[1756400206217,1.75710524,112650.0,112640.0,0.12464937]
[1756400206416,1.28031923,112650.0,112640.0,0.12464937]
[1756400206616,1.28031923,112650.0,112640.0,0.10864937]
[1756400206807,1.75710524,112650.0,112640.0,0.10864937]
[1756400207117,1.75709484,112650.0,112640.0,0.10864937]
[1756400207317,1.75709484,112650.0,112640.0,0.01988307]
[1756400207919,0.0917063,112640.0,112630.0,0.0887692]
[1756400208110,0.56849231,112640.0,112630.0,0.0887692]
[1756400208312,0.0917139,112630.0,112620.0,0.16130762]
[1756400208607,1.46653991,112630.0,112620.0,0.17730762]
[1756400208812,0.0917139,112630.0,112620.0,0.17730762]
[1756400209007,1.46585991,112630.0,112620.0,0.17730762]
[1756400209204,0.0917139,112630.0,112620.0,0.20206762]
[1756400209409,0.5705939,112630.0,112620.0,0.20206762]
[1756400209612,0.5705939,112630.0,112620.0,0.17730762]
[1756400210113,0.5705939,112630.0,112620.0,0.1047739]
[1756400210314,0.5705939,112630.0,112620.0,0.0887739]
[1756400210617,0.5705939,112630.0,112620.0,0.1047739]
[1756400210811,1.04737991,112630.0,112620.0,0.1057739]
[1756400211515,1.04737991,112630.0,112620.0,0.017]
[1756400211713,1.32460363,112630.0,112620.0,0.001]
[1756400213113,1.32460363,112630.0,112600.0,0.0887922]
[1756400213317,0.56591561,112610.0,112600.0,0.1047922]
[1756400213609,0.9846096,112610.0,112600.0,0.1295522]
[1756400214220,0.0891296,112610.0,112600.0,0.1315522]
[1756400214415,0.0891296,112610.0,112600.0,0.60833821]
[1756400214416,0.8329296,112610.0,112600.0,0.60833821]
[1756400214622,0.8329296,112610.0,112600.0,0.1315522]
[1756400215723,0.0891296,112610.0,112600.0,0.1345522]
[1756400215914,0.9837296,112610.0,112600.0,0.1345522]
[1756400216525,0.9837696,112610.0,112600.0,0.1345522]
[1756400216719,0.9837696,112610.0,112600.0,0.61133821]
[1756400216720,0.89442,112610.0,112600.0,0.61133821]
[1756400216925,0.89408,112610.0,112600.0,0.86133821]
[1756400217127,0.89408,112610.0,112600.0,1.33812422]
[1756400217617,0.00034,112620.0,112610.0,0.1047896]
[1756400217815,0.68206,112620.0,112610.0,0.60633561]
[1756400218425,0.8937,112620.0,112610.0,0.60633561]
[1756400218724,0.00034,112620.0,112610.0,0.60833561]
[1756400218923,0.73974,112620.0,112610.0,0.60933561]
[1756400219120,0.89265,112620.0,112610.0,0.60933561]
[1756400219513,0.89278,112620.0,112610.0,0.60933561]
[1756400219920,0.89238,112620.0,112610.0,0.60933561]
[1756400220116,0.00034,112620.0,112610.0,0.60933561]
[1756400220417,0.0891138,112630.0,112620.0,0.1299117]
[1756400220618,0.5637938,112630.0,112620.0,0.60669771]
[1756400221226,0.00034,112630.0,112620.0,0.60669771]
[1756400221418,0.68486,112630.0,112620.0,0.60669771]
[1756400221727,0.89166,112630.0,112620.0,0.60669771]
[1756400222421,0.0887722,112640.0,112630.0,0.1298959]
[1756400222422,0.0891073,112640.0,112630.0,0.1298959]
[1756400222626,0.90778161,112640.0,112630.0,0.62668467]
[1756400222814,0.11634751,112640.0,112630.0,0.62668467]
[1756400223020,0.91806161,112640.0,112630.0,0.62668467]
[1756400223220,0.89062,112640.0,112630.0,0.62668467]
[1756400223722,0.9803859,112640.0,112630.0,0.14989866]
[1756400223914,0.9803859,112640.0,112630.0,0.62668467]
[1756400224113,0.9813859,112640.0,112630.0,0.62668467]
[1756400224519,0.0911059,112640.0,112630.0,0.62668467]
[1756400224723,0.002,112640.0,112630.0,0.87668467]
[1756400226030,0.001,112640.0,112630.0,0.87668467]
[1756400226831,0.001,112640.0,112630.0,0.87868467]
[1756400227134,0.0828,112650.0,112640.0,0.1298959]
[1756400227135,0.08301,112650.0,112640.0,0.1298959]
[1756400227330,0.08301,112650.0,112640.0,0.60668191]
[1756400227533,0.08314,112650.0,112640.0,0.60668191]
[1756400227929,0.00034,112650.0,112640.0,0.60668191]
[1756400228128,0.4003,112650.0,112640.0,0.60668191]
[1756400228329,0.40017,112650.0,112640.0,0.60668191]
[1756400228531,0.4003,112650.0,112640.0,0.60668191]
[1756400230434,0.4003,112650.0,112640.0,0.61546817]
[1756400231037,0.39996,112650.0,112640.0,0.61546817]
[1756400231237,0.4003,112650.0,112640.0,0.61546817]
[1756400231441,0.4003,112650.0,112640.0,0.60668191]
[1756400231732,0.4890586,112650.0,112640.0,0.60668191]
[1756400231939,0.4003,112650.0,112640.0,0.60668191]
[1756400232135,0.42759067,112650.0,112640.0,0.60668191]
[1756400233140,0.42859067,112650.0,112640.0,0.1298959]
[1756400233339,0.42859067,112650.0,112640.0,0.60668191]
[1756400233539,0.51834927,112650.0,112640.0,0.60668191]
[1756400234539,0.42959067,112650.0,112640.0,0.60668191]
[1756400236235,0.51834937,112650.0,112640.0,0.60668191]
[1756400236741,0.42959067,112650.0,112640.0,0.60668191]
[1756400236939,0.02963067,112650.0,112640.0,0.60668191]
[1756400237142,0.91427067,112650.0,112640.0,0.60668191]
[1756400237532,0.02963067,112650.0,112640.0,0.60668191]
[1756400238038,0.02963067,112650.0,112640.0,0.1298959]
[1756400238244,0.00234,112650.0,112640.0,0.60668191]
[1756400238441,0.0910985,112650.0,112640.0,0.60668191]
[1756400238642,0.00234,112650.0,112640.0,0.60668191]
[1756400239050,0.3410985,112650.0,112640.0,0.1298959]
[1756400239936,1.2238185,112650.0,112640.0,0.1298959]
[1756400240145,1.2238185,112650.0,112640.0,0.1049559]
[1756400240440,1.70060451,112650.0,112640.0,0.01619]
[1756400240640,0.0889764,112640.0,112630.0,0.14990696]
[1756400240845,0.59315457,112640.0,112630.0,0.12496696]
[1756400241046,1.47543457,112640.0,112630.0,0.03619276]
[1756400241245,0.99856856,112640.0,112630.0,0.62669297]
[1756400242544,0.99856856,112640.0,112630.0,0.14990696]
[1756400242748,0.11636856,112640.0,112630.0,0.14990696]
[1756400242946,0.99752856,112640.0,112630.0,0.14990696]
[1756400243245,0.99852856,112640.0,112630.0,0.14990696]
[1756400243441,0.90976216,112640.0,112630.0,0.14990696]
[1756400243646,0.90976216,112640.0,112630.0,0.62669297]
[1756400243943,0.90920216,112640.0,112630.0,0.62669297]
[1756400244145,0.99796856,112640.0,112630.0,0.62669297]
[1756400244345,0.99896856,112640.0,112630.0,0.62669297]
[1756400244844,0.11836856,112640.0,112630.0,0.62669297]
[1756400245041,0.99848856,112640.0,112630.0,0.62669297]
[1756400245249,0.99848856,112640.0,112630.0,0.53165717]
[1756400246240,0.99848856,112640.0,112630.0,0.55162206]
[1756400246841,0.99848856,112640.0,112630.0,0.12492909]
[1756400247248,0.99848856,112640.0,112630.0,0.6266551]
[1756400247445,0.99848856,112640.0,112630.0,0.6017151]
[1756400247643,0.99848856,112640.0,112630.0,0.6266551]
[1756400247844,0.02960216,112640.0,112630.0,0.6266551]
[1756400248144,0.99716846,112640.0,112630.0,0.14986909]
[1756400248344,0.02960216,112640.0,112630.0,0.6266551]
[1756400248645,0.90768216,112640.0,112630.0,0.6266551]
[1756400248841,0.02960216,112640.0,112630.0,0.6266551]
[1756400249240,0.85580216,112640.0,112630.0,0.6266551]
[1756400249653,0.90732216,112640.0,112630.0,0.6266551]
[1756400249847,0.02960216,112640.0,112630.0,0.6266551]
[1756400250143,0.90728216,112640.0,112630.0,0.6266551]
[1756400251851,0.90728216,112640.0,112630.0,0.14986909]
[1756400252051,0.90728216,112640.0,112630.0,0.6266551]
[1756400252052,0.9687862,112640.0,112630.0,0.6266551]
[1756400252448,0.88002,112640.0,112630.0,0.6266551]
[1756400254953,0.87826,112640.0,112630.0,0.6266551]
[1756400258954,0.87678,112640.0,112630.0,0.6266551]
[1756400259961,0.9648261,112640.0,112630.0,0.6266551]
[1756400260159,0.9648261,112640.0,112630.0,0.14986909]
[1756400260558,0.9648261,112640.0,112630.0,0.6266551]
[1756400260956,0.9648261,112640.0,112630.0,0.12492909]
[1756400262260,0.9648261,112640.0,112630.0,0.5855251]
[1756400262461,0.9648261,112640.0,112630.0,0.6011551]
[1756400262763,0.0911061,112640.0,112630.0,0.6011551]
[1756400262962,0.9631861,112640.0,112630.0,0.6011551]
[1756400263162,0.9631861,112640.0,112630.0,0.12436909]
[1756400263860,0.9626261,112640.0,112630.0,0.12436909]
[1756400264965,0.9625061,112640.0,112630.0,0.12436909]
[1756400265853,0.0911061,112640.0,112630.0,0.12436909]
[1756400266061,0.9617861,112640.0,112630.0,0.12436909]
[1756400266959,1.68857211,112640.0,112630.0,0.01996489]
[1756400267365,1.71587349,112640.0,112630.0,0.01996489]
[1756400267761,0.84519349,112640.0,112630.0,0.01996489]
[1756400267961,1.71715349,112640.0,112630.0,0.01996489]
[1756400268259,0.84519349,112640.0,112630.0,0.01996489]
[1756400268459,1.71719349,112640.0,112630.0,0.01996489]
[1756400268762,0.84519349,112640.0,112630.0,0.10873849]
[1756400269062,1.71707349,112640.0,112630.0,0.10873849]
[1756400269758,0.84519349,112640.0,112630.0,0.10873849]
[1756400269961,1.71687349,112640.0,112630.0,0.10873849]
[1756400271867,1.24008748,112640.0,112630.0,0.10873849]
[1756400272069,1.71687349,112640.0,112630.0,0.10873849]
[1756400273062,1.46687349,112640.0,112630.0,0.10873849]
[1756400273566,1.46687349,112640.0,112630.0,0.01996489]
[1756400274367,0.1287639,112630.0,112610.0,0.0887847]
[1756400274571,0.1287765,112620.0,112610.0,0.1044196]
[1756400274766,0.03999,112620.0,112610.0,0.1279296]
[1756400274971,0.54619,112620.0,112610.0,0.1279296]
[1756400275167,0.6349717,112620.0,112610.0,0.1279296]
[1756400275362,0.6349717,112620.0,112610.0,0.1299296]
[1756400275572,0.9989717,112620.0,112610.0,0.60671561]
[1756400275771,0.1287717,112620.0,112610.0,0.60771561]
[1756400276071,0.9988117,112620.0,112610.0,0.60771561]
[1756400276970,0.9988117,112620.0,112610.0,0.1074196]
[1756400277172,0.9988117,112620.0,112610.0,0.1299296]
[1756400277367,0.9988117,112620.0,112610.0,0.1309296]
[1756400277867,0.9988117,112620.0,112610.0,0.003]
[1756400278070,1.47559771,112620.0,112610.0,0.003]
[1756400279169,1.47575771,112620.0,112610.0,0.003]
[1756400279378,0.60555771,112620.0,112610.0,0.003]
[1756400279579,1.47559771,112620.0,112610.0,0.003]
[1756400279868,0.67589703,112620.0,112610.0,0.003]
[1756400280067,0.19911102,112620.0,112610.0,0.003]
[1756400280264,0.78660932,112620.0,112610.0,0.60651541]
[1756400280467,0.87539092,112620.0,112610.0,0.1297294]
[1756400280878,1.06899092,112620.0,112610.0,0.1297294]
[1756400281066,1.06923092,112620.0,112610.0,0.60651541]
[1756400281272,1.06923092,112620.0,112610.0,0.58365541]
[1756400281571,1.06923092,112620.0,112610.0,0.60651541]
[1756400281777,0.03999,112620.0,112610.0,0.1297294]
[1756400281978,0.91163,112620.0,112610.0,0.60651541]
[1756400282279,1.0016115,112620.0,112610.0,0.60651541]
[1756400282473,0.91283,112620.0,112610.0,0.62637448]
[1756400282672,0.91271,112620.0,112610.0,0.87637448]
[1756400283178,0.91284,112620.0,112610.0,0.39958847]
[1756400283371,0.91284,112620.0,112610.0,0.87637448]
[1756400284078,0.02361,112640.0,112630.0,0.1267124]
[1756400284277,0.91148,112640.0,112630.0,0.60349841]
[1756400284474,0.91144,112640.0,112630.0,0.60349841]
[1756400284875,0.91152,112640.0,112630.0,0.60349841]
[1756400285476,0.91252,112640.0,112630.0,0.60349841]
[1756400285979,0.91252,112640.0,112630.0,0.1267124]
[1756400286182,1.001284,112640.0,112630.0,0.1267124]
[1756400286379,1.000764,112640.0,112630.0,0.1038524]
[1756400286675,0.128484,112640.0,112630.0,0.58063841]
[1756400286882,1.001644,112640.0,112630.0,0.58063841]
[1756400287183,1.001644,112640.0,112630.0,0.60349841]
[1756400287881,1.001644,112640.0,112630.0,0.01508]
[1756400287882,1.47903001,112640.0,112630.0,0.01508]
[1756400288777,0.088772,112630.0,112620.0,0.49964601]
[1756400288983,0.127492,112630.0,112620.0,0.1267199]
[1756400290379,0.60427801,112630.0,112620.0,0.1038599]
[1756400290579,0.60427801,112630.0,112620.0,0.01508]
[1756400290784,0.60427801,112630.0,112620.0,0.1038599]
[1756400290990,0.60427801,112630.0,112620.0,0.1267199]
[1756400291190,0.60427801,112630.0,112620.0,0.1038599]
[1756400292082,0.63172581,112630.0,112620.0,0.1038599]
[1756400292389,0.95172581,112630.0,112620.0,0.1038599]
[1756400292985,0.95172581,112630.0,112620.0,0.1267199]
[1756400293186,0.95172581,112630.0,112620.0,0.1038599]
[1756400293489,0.95172581,112630.0,112620.0,0.01508]
[1756400293786,0.95172581,112630.0,112620.0,0.1038599]
[1756400294391,0.4749398,112630.0,112620.0,0.1038599]
[1756400294694,0.95172581,112630.0,112620.0,0.1038599]
[1756400294876,1.82580581,112630.0,112620.0,0.1038599]
[1756400295885,1.82476581,112630.0,112620.0,0.0887799]
[1756400296093,1.82520581,112630.0,112620.0,0.1038599]
[1756400297394,1.3484198,112630.0,112620.0,0.1038599]
[1756400297891,1.82520581,112630.0,112620.0,0.1038599]
[1756400298686,0.0887799,112620.0,112610.0,0.01999208]
[1756400298890,0.96173371,112620.0,112610.0,0.01999208]
[1756400299091,0.96173371,112620.0,112590.0,0.01508]
[1756400299092,0.1275157,112600.0,112590.0,0.01508]
[1756400299288,0.1275235,112590.0,112580.0,0.13043312]
[1756400299689,0.60430951,112590.0,112580.0,0.03794]
[1756400299886,0.87293992,112590.0,112550.0,0.02286]
[1756400300090,1.0017759,112580.0,112570.0,0.1038993]
[1756400300290,1.35917897,112580.0,112570.0,0.1267593]
[1756400300490,0.39525608,112580.0,112570.0,0.1267593]
[1756400300795,0.94177608,112580.0,112570.0,0.1267593]
[1756400301386,0.91237301,112580.0,112570.0,0.1267593]
[1756400301891,0.91237301,112580.0,112570.0,0.03794]
[1756400301892,1.00118441,112580.0,112570.0,0.03794]
[1756400302091,1.00462441,112580.0,112570.0,0.1267593]
[1756400302292,0.45466421,112580.0,112570.0,0.1267593]
[1756400302493,1.33486421,112580.0,112570.0,0.1267593]
[1756400302801,0.36585301,112580.0,112570.0,0.1267593]
[1756400302991,1.25137301,112580.0,112570.0,0.1267593]
[1756400303394,1.34018421,112580.0,112570.0,0.1267593]
[1756400303797,0.45466421,112580.0,112570.0,0.1267593]
[1756400303993,1.34050421,112580.0,112570.0,0.1267593]
[1756400304496,1.01050421,112580.0,112570.0,0.1267593]
[1756400304897,0.92133301,112580.0,112570.0,0.1267593]
[1756400305501,1.01014211,112580.0,112570.0,0.1267593]
[1756400306101,1.48692812,112580.0,112570.0,0.0888193]
[1756400306302,1.01014211,112580.0,112570.0,0.0888193]
[1756400306601,1.48692812,112580.0,112570.0,0.0888193]
[1756400307103,1.01014211,112580.0,112570.0,0.1038993]
[1756400307900,0.92149301,112580.0,112570.0,0.1267593]
[1756400308300,0.92149301,112580.0,112570.0,0.1038993]
[1756400308904,0.92133301,112580.0,112570.0,0.1038993]
[1756400309104,0.03585301,112580.0,112570.0,0.1267593]
[1756400309308,1.01046331,112580.0,112570.0,0.1038993]
[1756400309906,1.01046331,112580.0,112570.0,0.1267593]
[1756400310503,1.01046331,112580.0,112570.0,0.1038993]
[1756400310708,1.48724932,112580.0,112570.0,0.0888193]
[1756400310908,1.01046331,112580.0,112570.0,0.1045193]
[1756400311403,1.48724932,112580.0,112570.0,0.0888193]
[1756400312100,1.01046331,112580.0,112570.0,0.1045181]
[1756400312305,0.0888181,112570.0,112560.0,0.2195179]
[1756400312503,0.1287881,112570.0,112560.0,0.2195179]
[1756400312705,0.1287881,112570.0,112560.0,0.69630391]
[1756400312900,1.0144281,112570.0,112560.0,0.1484447]
[1756400313103,1.49121411,112570.0,112560.0,0.1484447]
[1756400313298,1.49121411,112570.0,112560.0,0.0364541]
[1756400314008,1.0153881,112570.0,112560.0,0.0364541]
[1756400314204,1.49217411,112570.0,112560.0,0.0207541]
[1756400314408,1.0153881,112570.0,112560.0,0.0177]
[1756400314808,0.60557411,112570.0,112560.0,0.0177]
[1756400315010,1.0151881,112570.0,112560.0,0.0177]
[1756400315311,1.49197411,112570.0,112560.0,0.0177]
[1756400315505,0.1287881,112570.0,112560.0,0.1306961]
[1756400315704,1.0151881,112570.0,112560.0,0.0177]
[1756400316010,1.0152281,112570.0,112560.0,0.1065261]
[1756400316210,1.86201411,112570.0,112560.0,0.1065261]
[1756400316411,1.29649,112570.0,112560.0,0.1065261]
[1756400316607,1.27649,112570.0,112560.0,0.1306961]
[1756400316914,0.92625,112570.0,112560.0,0.1306961]
[1756400317105,1.3250683,112570.0,112560.0,0.0908261]
[1756400317305,1.3250683,112570.0,112560.0,0.0177]
[1756400317608,1.80185431,112570.0,112560.0,0.1065262]
[1756400317910,1.3250683,112570.0,112560.0,0.1306962]
[1756400318307,1.3250283,112570.0,112560.0,0.1306962]
[1756400318506,0.4387883,112570.0,112560.0,0.1306962]
[1756400318705,1.3260283,112570.0,112560.0,0.1306962]
[1756400319004,1.3258283,112570.0,112560.0,0.1306962]
[1756400319210,1.3258283,112570.0,112560.0,0.0908262]
[1756400319410,1.80261431,112570.0,112560.0,0.1065262]
[1756400319810,0.91557431,112570.0,112560.0,0.1065262]
[1756400320012,1.3317083,112570.0,112560.0,0.1065262]
[1756400320213,1.80849431,112570.0,112560.0,0.1306962]
[1756400321315,1.3317083,112570.0,112560.0,0.1306962]
[1756400321615,1.3317083,112570.0,112560.0,0.1065262]
[1756400321807,1.80849431,112570.0,112560.0,0.1065262]
[1756400322415,1.35887766,112570.0,112560.0,0.0177]
[1756400322614,1.83566367,112570.0,112560.0,0.0177]
[1756400323414,1.35887766,112570.0,112560.0,0.0177]
[1756400323611,1.35887766,112570.0,112560.0,0.1065254]
[1756400323811,1.04743766,112570.0,112560.0,0.1306954]
[1756400324115,0.93145,112570.0,112560.0,0.85748141]
[1756400324315,0.00013301,112580.0,112570.0,0.0888175]
[1756400324505,0.60849301,112580.0,112570.0,0.60547351]
[1756400324710,0.62377301,112580.0,112570.0,0.60547351]
[1756400325019,0.64846301,112580.0,112570.0,0.60547351]
[1756400325816,0.04110301,112580.0,112570.0,0.60547351]
[1756400326012,0.93278301,112580.0,112570.0,0.60547351]
[1756400326208,1.02159261,112580.0,112570.0,0.60547351]
[1756400326511,1.02159261,112580.0,112570.0,0.1286875]
[1756400326815,1.02159261,112580.0,112570.0,0.60547351]
[1756400327118,0.93278301,112580.0,112570.0,0.1286875]
[1756400327319,0.93278301,112580.0,112570.0,0.60547351]
[1756400327912,1.02159261,112580.0,112570.0,0.1286875]
[1756400328118,1.49837862,112580.0,112570.0,0.1045175]
[1756400328311,1.52564284,112580.0,112570.0,0.1045175]
[1756400328508,0.0888175,112570.0,112560.0,0.14846789]
[1756400328707,0.1287875,112570.0,112560.0,0.12429789]
[1756400328914,0.15604729,112570.0,112560.0,0.12429789]
[1756400329311,0.15604729,112570.0,112560.0,0.14846789]
[1756400329512,0.15604729,112570.0,112560.0,0.12429789]
[1756400329707,0.15604729,112570.0,112560.0,0.14846789]
[1756400329914,0.15604729,112570.0,112560.0,0.14946789]
[1756400330918,0.15604729,112570.0,112560.0,0.15046789]
[1756400331715,0.15604729,112570.0,112560.0,0.6272539]
[1756400331918,0.15604729,112570.0,112560.0,0.15046789]
[1756400332927,1.04464729,112570.0,112560.0,0.15046789]
[1756400334824,0.15604729,112570.0,112560.0,0.15046789]
[1756400335023,1.04380729,112570.0,112560.0,0.15046789]
[1756400335522,0.95498979,112570.0,112560.0,0.15046789]
[1756400336021,0.95498979,112570.0,112560.0,0.6272539]
[1756400336218,0.06722979,112570.0,112560.0,0.6272539]
[1756400336417,0.95434979,112570.0,112560.0,0.6272539]
[1756400336814,0.95338979,112570.0,112560.0,0.6272539]
[1756400337019,0.06722979,112570.0,112560.0,0.6272539]
[1756400337213,0.77874979,112570.0,112560.0,0.6272539]
[1756400337927,0.77874979,112570.0,112560.0,0.15046789]
[1756400338127,0.77874979,112570.0,112560.0,0.6272539]
[1756400338427,0.95318979,112570.0,112560.0,0.8772539]
[1756400338618,0.92849979,112570.0,112560.0,0.8772539]
[1756400338819,0.95318979,112570.0,112560.0,0.40046789]
[1756400339020,0.95318979,112570.0,112560.0,0.8772539]
[1756400339619,0.95318979,112570.0,112560.0,0.40046789]
[1756400339620,1.04200709,112570.0,112560.0,0.40046789]
[1756400339825,1.04200709,112570.0,112560.0,0.8772539]
[1756400340227,1.04200709,112570.0,112560.0,0.40046789]
[1756400340423,0.95318979,112570.0,112560.0,0.8772539]
[1756400341132,1.0572518,112570.0,112560.0,0.8772539]
[1756400341433,0.1712918,112570.0,112560.0,0.8772539]
[1756400341631,1.1451491,112570.0,112560.0,0.3565225]
[1756400341932,1.1451491,112570.0,112560.0,0.3799025]
[1756400342131,1.11788931,112570.0,112560.0,0.3799025]
[1756400342333,0.23284931,112570.0,112560.0,0.1299025]
[1756400342523,0.94656931,112570.0,112560.0,0.60668851]
[1756400343127,0.94656931,112570.0,112560.0,0.1299025]
[1756400343326,0.94656931,112570.0,112560.0,0.60668851]
[1756400343523,0.94656931,112570.0,112560.0,0.1299025]
[1756400344336,0.94656931,112570.0,112560.0,0.60668851]
[1756400344931,0.94656931,112570.0,112560.0,0.1299025]
[1756400345134,0.94656931,112570.0,112560.0,0.60668851]
[1756400345731,0.94656931,112570.0,112560.0,0.1299025]
[1756400346035,0.85775201,112570.0,112560.0,0.60668851]
[1756400346224,0.85775201,112570.0,112560.0,0.1299025]
[1756400346735,0.85775201,112570.0,112560.0,0.60668851]
[1756400347834,0.14403201,112570.0,112560.0,0.60668851]
[1756400348035,1.02651201,112570.0,112560.0,0.60668851]
[1756400348338,1.02651201,112570.0,112560.0,0.1299025]
[1756400348536,1.11532921,112570.0,112560.0,0.60668851]
[1756400348838,1.11532921,112570.0,112560.0,0.1299025]
[1756400349134,1.02651201,112570.0,112560.0,0.1299025]
[1756400349636,1.02651201,112570.0,112560.0,0.60668851]
[1756400349836,0.14403201,112570.0,112560.0,0.1299025]
[1756400350032,1.02831201,112570.0,112560.0,0.60668851]
[1756400350339,1.11712931,112570.0,112560.0,0.60668851]
[1756400350636,1.11712931,112570.0,112560.0,0.1299025]
[1756400350833,1.11712931,112570.0,112560.0,0.1065225]
[1756400351026,1.84391532,112570.0,112560.0,0.002]
[1756400351230,1.76402402,112570.0,112560.0,0.002]
[1756400351433,2.24081003,112570.0,112560.0,0.002]
[1756400351632,2.21391532,112570.0,112560.0,0.002]
[1756400352138,2.24080656,112570.0,112560.0,0.002]
[1756400353642,0.1042531,112550.0,112540.0,0.12435496]
[1756400353844,0.1292331,112550.0,112540.0,0.14773496]
[1756400354138,1.0115931,112550.0,112540.0,0.14773496]
[1756400354638,1.0115931,112550.0,112540.0,0.05889676]
[1756400354838,1.48837911,112550.0,112540.0,0.03551676]
[1756400355035,1.48837911,112550.0,112540.0,0.14773746]
[1756400355337,0.0888405,112540.0,112520.0,0.01562]
[1756400355538,1.0109284,112530.0,112520.0,0.1278563]
[1756400355733,1.48771441,112530.0,112520.0,0.1278563]
[1756400355938,1.48771441,112530.0,112520.0,0.1044763]
[1756400356134,1.48571441,112530.0,112520.0,0.1044763]
[1756400356339,1.48279441,112530.0,112520.0,0.1044763]
[1756400356633,0.0888657,112510.0,112490.0,0.57471755]
[1756400356831,0.92204,112500.0,112490.0,0.0888745]
[1756400357031,0.0404,112490.0,112480.0,0.13231932]
[1756400357235,0.0404,112490.0,112480.0,0.14793932]
[1756400357437,0.01542,112490.0,112480.0,0.14793932]
[1756400357638,0.0404,112490.0,112480.0,0.14793932]
[1756400358241,0.0404,112490.0,112480.0,0.21924792]
[1756400358540,0.0404,112490.0,112480.0,0.62472533]
[1756400358840,0.0404,112490.0,112480.0,0.14793932]
[1756400358841,0.6148,112490.0,112480.0,0.14793932]
[1756400359029,0.0394,112490.0,112480.0,0.14793932]
[1756400359236,0.0394,112490.0,112480.0,0.15093932]
[1756400359539,0.2466,112490.0,112480.0,0.53884403]
[1756400359730,0.0394,112490.0,112480.0,0.62773113]
[1756400359938,0.16836,112500.0,112490.0,0.1278792]
[1756400360138,0.04053301,112510.0,112500.0,0.1278715]
[1756400360336,0.18881301,112510.0,112500.0,0.0888715]
[1756400360534,0.18881301,112510.0,112500.0,0.1278715]
[1756400361232,0.18881301,112510.0,112500.0,0.1044915]
[1756400361440,0.18881301,112510.0,112490.0,0.04125802]
[1756400361441,0.0404,112500.0,112490.0,0.03349802]
[1756400361632,0.60605721,112500.0,112490.0,0.01787802]
[1756400361841,0.0404,112490.0,112480.0,0.02205802]
[1756400362037,0.0404,112490.0,112480.0,0.03667802]
[1756400362234,0.0404,112490.0,112480.0,0.14894492]
[1756400362437,0.02498,112500.0,112490.0,0.0888783]
[1756400362641,0.44824,112500.0,112490.0,0.60466431]
[1756400363139,0.12161502,112510.0,112500.0,0.0888704]
[1756400363334,0.10419502,112510.0,112500.0,0.1278704]
[1756400363532,0.10419502,112510.0,112500.0,0.60465641]
[1756400363934,0.10419502,112510.0,112500.0,0.14552163]
[1756400364144,0.14459502,112510.0,112500.0,0.39552163]
[1756400364338,0.14459502,112510.0,112500.0,0.05665123]
[1756400364544,0.62138103,112510.0,112500.0,0.01765123]
[1756400364745,0.74024423,112510.0,112500.0,0.01765123]
[1756400365043,0.67419502,112510.0,112480.0,0.60567291]
[1756400365238,0.01542,112500.0,112490.0,0.60466491]
[1756400365434,1.04645502,112510.0,112500.0,0.039]
[1756400365634,0.0404,112500.0,112480.0,0.1122634]